bitfinex/quotes_SOLUSD_20250601
["timestamp","ask_amount","ask_price","bid_price","bid_amount"]
[1748765011798,14.76185831,154.3,154.24,26.0]
[1748765011997,14.76185831,154.29,154.25,14.76185831]
[1748765012196,45.96075312,154.31,154.25,14.76185831]
[1748765012197,14.76185831,154.3,154.25,14.76185831]
[1748765013130,21.24277297,154.3,154.25,14.76185831]
[1748765013634,14.76185831,154.29,154.24,26.0]
[1748765013846,14.76185831,154.28,154.25,26.0]
[1748765014002,14.76185831,154.28,154.24,26.0]
[1748765014320,14.76185831,154.29,154.24,40.76185831]
[1748765015126,14.76185831,154.29,154.24,26.0]
[1748765015127,21.24357173,154.29,154.24,26.0]
[1748765015331,10.2,154.28,154.18,6.48592554]
[1748765015500,14.76185831,154.26,154.18,6.48592554]
[1748765015707,14.76185831,154.26,154.21,40.76185831]
[1748765015906,14.76185831,154.26,154.21,26.0]
[1748765016100,54.44185831,154.27,154.22,14.76185831]
[1748765016421,39.68,154.27,154.23,14.76185831]
[1748765017214,39.68,154.27,154.21,32.48426881]
[1748765017415,39.68,154.27,154.23,14.76185831]
[1748765018321,39.68,154.27,154.21,32.48426881]
[1748765018502,39.68,154.27,154.23,14.76185831]
[1748765020129,39.68,154.27,154.23,21.24564222]
[1748765021034,49.9,154.28,154.25,14.76185831]
[1748765021722,10.2,154.28,154.25,14.76185831]
[1748765023425,10.2,154.28,154.25,21.24479744]
[1748765024216,10.2,154.28,154.25,14.76185831]
[1748765024725,16.68190183,154.28,154.24,14.76185831]
[1748765025235,10.2,154.28,154.24,14.76185831]
[1748765026444,16.68182826,154.28,154.24,14.76185831]
[1748765026914,10.2,154.28,154.24,14.76185831]
[1748765027314,16.68181161,154.28,154.24,14.76185831]
[1748765028120,31.44366992,154.28,154.23,40.76185831]
[1748765028436,31.44366992,154.28,154.23,14.76185831]
[1748765028626,14.76185831,154.27,154.21,32.48460838]
[1748765028826,14.76185831,154.27,154.23,14.76185831]
[1748765029034,14.76185831,154.27,154.22,14.76185831]
[1748765029843,21.24427538,154.27,154.22,14.76185831]
[1748765030519,21.24427538,154.27,154.23,14.76185831]
[1748765031136,21.24427538,154.27,154.22,14.76185831]
[1748765031324,6.4804614,154.31,154.26,14.76185831]
[1748765031537,54.60185831,154.3,154.26,14.76185831]
[1748765031938,54.60185831,154.3,154.25,14.76185831]
[1748765032342,61.08309195,154.3,154.25,14.76185831]
[1748765033345,61.08309195,154.3,154.26,14.76185831]
[1748765033346,39.84,154.3,154.26,14.76185831]
[1748765033529,10.4,154.31,154.26,14.76185831]
[1748765033734,10.4,154.31,154.29,14.76185831]
[1748765034120,10.4,154.31,154.3,14.76185831]
[1748765035056,10.4,154.31,154.29,14.76185831]
[1748765037523,10.4,154.31,154.28,14.76185831]
[1748765037524,16.88049471,154.31,154.28,14.76185831]
[1748765037845,10.4,154.31,154.28,14.76185831]
[1748765038043,10.4,154.31,154.29,14.76185831]
[1748765040039,10.4,154.31,154.27,6.48204352]
[1748765040227,10.4,154.31,154.29,14.76185831]
[1748765044428,10.4,154.31,154.28,14.76185831]
[1748765045541,16.88047091,154.31,154.28,14.76185831]
[1748765045741,16.88047091,154.31,154.27,14.76185831]
[1748765046272,31.64232922,154.31,154.27,14.76185831]
[1748765047362,16.88047091,154.31,154.27,14.76185831]
[1748765047692,31.64232922,154.31,154.27,14.76185831]
[1748765048163,16.88047091,154.31,154.27,14.76185831]
[1748765050354,31.64232922,154.31,154.26,14.76185831]
[1748765050941,14.76185831,154.3,154.24,26.0]
[1748765051137,54.50185831,154.29,154.24,14.76185831]
[1748765051952,14.76185831,154.28,154.24,14.76185831]
[1748765053159,6.48214169,154.27,154.24,14.76185831]
[1748765053354,25.14185831,154.26,154.19,6.48524403]
[1748765053558,25.14185831,154.26,154.22,14.76185831]
[1748765054061,10.38,154.26,154.22,14.76185831]
[1748765054730,10.38,154.26,154.23,14.76185831]
[1748765055461,31.62452181,154.26,154.22,14.76185831]
[1748765056263,16.8626635,154.26,154.22,14.76185831]
[1748765057069,39.74,154.25,154.21,14.76185831]
[1748765057243,54.50185831,154.25,154.21,14.76185831]
[1748765058253,60.98521345,154.25,154.21,14.76185831]
[1748765061077,14.76185831,154.24,154.2,14.76185831]
[1748765061265,14.76185831,154.24,154.19,40.76185831]
[1748765061883,14.76185831,154.22,154.17,43.30034684]
[1748765062175,39.72,154.21,154.17,28.53848853]
[1748765062361,39.72,154.21,154.18,14.76185831]
[1748765062963,39.72,154.21,154.17,43.30034684]
[1748765063967,46.20478858,154.21,154.17,43.30034684]
[1748765064656,46.20478858,154.21,154.17,28.53848853]
[1748765064856,46.20478858,154.21,154.17,43.30034684]
[1748765065065,46.20478858,154.21,154.18,14.76185831]
[1748765067183,39.72,154.21,154.18,14.76185831]
[1748765067564,39.72,154.21,154.19,14.76185831]
[1748765072965,6.48397327,154.23,154.19,14.76185831]
[1748765073169,39.66,154.22,154.19,14.76185831]
[1748765077728,39.66,154.22,154.17,35.02470806]
[1748765077878,39.66,154.22,154.19,14.76185831]
[1748765081178,46.14443172,154.22,154.19,14.76185831]
[1748765082587,46.14443172,154.22,154.17,9.02470806]
[1748765082784,46.14443172,154.22,154.19,14.76185831]
[1748765083803,39.66,154.22,154.19,14.76185831]
[1748765084003,46.14433427,154.22,154.19,14.76185831]
[1748765090692,46.14433427,154.22,154.19,9.47186141]
[1748765095916,49.88,154.23,154.21,9.47186141]
[1748765096094,10.32,154.23,154.21,9.47186141]
[1748765097799,10.32,154.23,154.22,9.47186141]
[1748765101691,10.32,154.23,154.19,26.0]
[1748765101897,10.32,154.23,154.19,9.47186141]
[1748765102099,26.27579217,154.23,154.19,9.47186141]
[1748765102618,16.80393076,154.23,154.2,9.47186141]
[1748765105096,10.32,154.23,154.21,9.47186141]
[1748765107524,10.32,154.23,154.22,9.47186141]
[1748765107894,46.04291332,154.26,154.22,9.47186141]
[1748765108115,46.04291332,154.26,154.2,6.48470161]
[1748765108326,46.04291332,154.26,154.23,9.47186141]
[1748765108822,55.51477473,154.26,154.22,9.47186141]
[1748765109010,46.04291332,154.26,154.22,9.47186141]
[1748765110119,39.58,154.25,154.22,9.47186141]
[1748765110320,39.58,154.25,154.19,6.48541431]
[1748765110533,39.58,154.25,154.21,9.47186141]
[1748765111030,6.48340248,154.24,154.21,9.47186141]
[1748765112019,46.06309535,154.25,154.21,9.47186141]
[1748765112218,39.58,154.25,154.22,9.47186141]
[1748765112524,46.06304244,154.25,154.22,9.47186141]
[1748765114936,39.58,154.25,154.22,9.47186141]
[1748765115326,6.48268422,154.26,154.22,9.47186141]
[1748765115522,39.58,154.25,154.22,9.47186141]
[1748765115820,39.58,154.25,154.17,63.40376181]
[1748765115821,39.58,154.25,154.2,6.48482286]
[1748765116128,39.58,154.25,154.23,9.47186141]
[1748765116542,46.06300112,154.25,154.23,9.47186141]
[1748765117030,39.58,154.25,154.23,9.47186141]
[1748765117547,39.58,154.25,154.22,9.47186141]
[1748765117840,26.17406685,154.27,154.22,9.47186141]
[1748765118019,10.22,154.28,154.26,9.47186141]
[1748765118220,10.22,154.28,154.27,9.47186141]
[1748765120646,10.22,154.28,154.27,14.78420852]
[1748765121017,10.22,154.28,154.26,14.78420852]
[1748765121214,31.48613388,154.28,154.24,14.78420852]
[1748765122526,14.78420852,154.27,154.23,14.78420852]
[1748765122757,39.56,154.26,154.23,14.78420852]
[1748765123245,39.56,154.26,154.24,14.78420852]
[1748765125947,46.04257412,154.26,154.24,14.78420852]
[1748765126129,46.04257412,154.26,154.21,8.10908686]
[1748765126130,46.04257412,154.26,154.23,14.78420852]
[1748765126844,46.04257412,154.26,154.21,27.6245]
[1748765126845,60.82678264,154.26,154.21,26.0]
[1748765127044,14.78420852,154.25,154.21,14.78420852]
[1748765127214,14.78420852,154.25,154.19,26.0]
[1748765127419,14.78420852,154.25,154.2,14.78420852]
[1748765127623,14.78420852,154.24,154.2,14.78420852]
[1748765128532,14.78420852,154.24,154.19,40.78420852]
[1748765129248,6.48382286,154.23,154.19,40.78420852]
[1748765129425,39.56,154.22,154.19,40.78420852]
[1748765129750,39.56,154.22,154.17,2.53848853]
[1748765130044,39.56,154.22,154.18,14.78420852]
[1748765131829,46.04453366,154.22,154.18,14.78420852]
[1748765132341,46.04453366,154.22,154.19,14.78420852]
[1748765138155,46.04453366,154.22,154.18,14.78420852]
[1748765138655,60.82874218,154.22,154.17,4.19008853]
[1748765138843,60.82874218,154.22,154.17,18.97429705]
[1748765142684,55.51867346,154.22,154.17,13.66422833]
[1748765142880,55.51867346,154.22,154.18,9.4741398]
[1748765143182,55.51867346,154.22,154.18,8.9741398]
[1748765144685,55.51867346,154.22,154.17,13.66422833]
[1748765145184,6.4850843,154.2,154.17,13.66422833]
[1748765146064,39.5,154.19,154.17,13.66422833]
[1748765147266,45.98552735,154.19,154.17,13.66422833]
[1748765153271,10.22,154.21,154.18,9.4741398]
[1748765153472,49.68,154.21,154.2,9.4741398]
[1748765154198,49.68,154.21,154.19,9.4741398]
[1748765154799,56.16467185,154.21,154.19,9.4741398]
[1748765156501,49.68,154.21,154.19,9.4741398]
[1748765156671,10.22,154.21,154.2,9.4741398]
[1748765157690,6.48366236,154.24,154.2,9.4741398]
[1748765157896,6.48366236,154.24,154.21,9.4741398]
[1748765158071,39.46,154.23,154.21,9.4741398]
[1748765158993,45.94366236,154.24,154.21,9.4741398]
[1748765160401,39.48,154.27,154.23,9.4741398]
[1748765160686,39.48,154.27,154.24,9.4741398]
[1748765160890,48.9541398,154.27,154.23,9.4741398]
[1748765161674,39.48,154.27,154.23,9.4741398]
[1748765161874,48.9541398,154.27,154.23,9.4741398]
[1748765162380,6.4825619,154.26,154.23,9.4741398]
[1748765164874,6.4825619,154.26,154.22,17.1696398]
[1748765165291,6.4825619,154.26,154.22,11.0753398]
[1748765166184,6.4825619,154.26,154.22,1.6012]
[1748765166384,6.4825619,154.26,154.22,11.0753398]
[1748765166685,15.9567017,154.26,154.22,9.4741398]
[1748765166999,32.16310647,154.26,154.21,9.4741398]
[1748765167295,9.4741398,154.23,154.19,9.4741398]
[1748765167497,48.9341398,154.23,154.19,9.4741398]
[1748765168675,9.4741398,154.22,154.18,11.0666398]
[1748765168877,6.48466377,154.21,154.18,11.0666398]
[1748765170377,6.48466377,154.21,154.17,12.01262833]
[1748765171282,6.48466377,154.21,154.18,9.4741398]
[1748765172279,15.95880357,154.21,154.17,12.01262833]
[1748765173399,6.48466377,154.21,154.18,9.4741398]
[1748765173898,6.48441357,154.22,154.18,9.4741398]
[1748765175412,6.48393935,154.23,154.19,9.4741398]
[1748765175582,26.11771186,154.24,154.2,9.4741398]
[1748765175782,16.64357206,154.24,154.21,9.4741398]
[1748765175990,10.16,154.24,154.22,9.4741398]
[1748765177607,17.26623968,154.27,154.23,9.4741398]
[1748765177608,7.79209988,154.27,154.23,9.4741398]
[1748765177803,7.79209988,154.27,154.26,9.4741398]
[1748765177990,103.52,154.3,154.26,9.4741398]
[1748765178191,142.98,154.3,154.28,9.4741398]
[1748765178394,10.16,154.3,154.28,9.4741398]
[1748765178783,10.16,154.3,154.28,14.78134951]
[1748765179711,16.64094121,154.3,154.28,14.78134951]
[1748765180528,16.64094121,154.3,154.27,14.78134951]
[1748765182192,16.64094121,154.3,154.23,32.48374712]
[1748765182193,31.42229072,154.3,154.26,14.78134951]
[1748765183217,31.42229072,154.3,154.25,40.78134951]
[1748765183902,31.42229072,154.3,154.25,14.78134951]
[1748765184103,14.78134951,154.29,154.24,14.78134951]
[1748765184506,14.78134951,154.29,154.25,14.78134951]
[1748765185515,6.48172154,154.28,154.25,14.78134951]
[1748765186014,6.48172154,154.28,154.24,14.78134951]
[1748765187613,14.78134951,154.28,154.24,14.78134951]
[1748765189234,6.48214169,154.27,154.24,14.78134951]
[1748765190036,6.48178856,154.28,154.24,14.78134951]
[1748765190210,49.6,154.3,154.27,14.78134951]
[1748765190519,56.08107441,154.3,154.27,14.78134951]
[1748765191110,56.08107441,154.3,154.26,14.78134951]
[1748765191915,56.08107441,154.3,154.27,14.78134951]
[1748765192305,56.08107441,154.3,154.26,14.78134951]
[1748765193104,31.42242392,154.3,154.26,14.78134951]
[1748765193600,31.42242392,154.3,154.25,14.78134951]
[1748765193795,14.78134951,154.29,154.25,14.78134951]
[1748765193998,14.78134951,154.29,154.24,14.78134951]
[1748765194220,14.78134951,154.28,154.24,14.78134951]
[1748765194927,6.48172154,154.28,154.25,14.78134951]
[1748765195221,6.48146958,154.29,154.25,14.78134951]
[1748765195526,6.48146958,154.29,154.26,14.78134951]
[1748765195707,10.16,154.3,154.27,14.78134951]
[1748765195905,10.16,154.3,154.28,14.78134951]
[1748765196101,39.42,154.32,154.29,14.78134951]
[1748765196908,45.90005218,154.32,154.29,14.78134951]
[1748765197108,6.48005218,154.32,154.29,14.78134951]
[1748765197848,6.4797221,154.33,154.29,14.78134951]
[1748765198001,45.8997221,154.33,154.29,14.78134951]
[1748765198727,6.4797221,154.33,154.29,14.78134951]
[1748765199111,56.03933018,154.34,154.3,14.78134951]
[1748765201338,16.61933018,154.34,154.3,14.78134951]
[1748765201521,56.03933018,154.34,154.3,14.78134951]
[1748765202934,70.82067969,154.34,154.29,14.78134951]
[1748765203315,14.78134951,154.33,154.29,14.78134951]
[1748765204333,70.82067969,154.34,154.29,14.78134951]
[1748765204723,10.14,154.34,154.31,14.78134951]
[1748765205447,16.61927474,154.34,154.31,14.78134951]
[1748765205816,16.61927474,154.34,154.26,44.64964886]
[1748765205817,16.61927474,154.34,154.3,14.78134951]
[1748765206207,31.40062425,154.34,154.3,14.78134951]
[1748765206732,16.61927474,154.34,154.3,14.78134951]
[1748765207422,31.40062425,154.34,154.3,14.78134951]
[1748765207622,31.40062425,154.34,154.28,6.4815855]
[1748765207835,31.40062425,154.34,154.29,14.78134951]
[1748765208944,47.59862865,154.34,154.29,14.78134951]
[1748765209115,14.78134951,154.3,154.25,14.78134951]
[1748765209444,14.78134951,154.29,154.23,6.48365863]
[1748765209621,14.78134951,154.28,154.23,14.78134951]
[1748765209813,14.78134951,154.29,154.25,26.0]
[1748765210243,14.78134951,154.29,154.25,40.78134951]
[1748765210821,21.26304883,154.29,154.25,40.78134951]
[1748765213317,6.48088139,154.3,154.25,40.78134951]
[1748765213534,21.2622309,154.3,154.25,40.78134951]
[1748765217517,39.42,154.31,154.27,14.78134951]
[1748765217720,54.20134951,154.32,154.27,14.78134951]
[1748765217912,39.42,154.32,154.28,14.78134951]
[1748765219522,21.2609711,154.33,154.28,14.78134951]
[1748765219737,60.6809711,154.33,154.28,14.78134951]
[1748765220136,60.6809711,154.33,154.29,14.78134951]
[1748765220337,6.47962159,154.33,154.3,14.78134951]
[1748765220546,10.14,154.34,154.32,14.78134951]
[1748765220727,45.89845981,154.36,154.33,14.78134951]
[1748765221118,6.47845981,154.36,154.33,14.78134951]
[1748765222949,6.47845981,154.36,154.32,14.78134951]
[1748765223334,6.47808641,154.37,154.33,14.78134951]
[1748765223566,10.14,154.38,154.36,14.78134951]
[1748765224057,151.56671659,154.4,154.36,14.78134951]
[1748765224549,166.3480661,154.4,154.36,14.78134951]
[1748765225045,166.3480661,154.4,154.35,14.78134951]
[1748765226150,126.9280661,154.4,154.35,14.78134951]
[1748765226447,166.3480661,154.4,154.35,14.78134951]
[1748765226828,14.78134951,154.39,154.35,14.78134951]
[1748765227229,21.25880192,154.39,154.35,14.78134951]
[1748765228450,14.78134951,154.37,154.32,14.78134951]
[1748765229043,14.78134951,154.37,154.31,34.0436]
[1748765229350,21.26139098,154.32,154.27,7.6666]
[1748765229529,14.78134951,154.3,154.27,7.6666]
[1748765230644,6.48130144,154.29,154.27,7.6666]
[1748765232751,21.26181091,154.31,154.27,7.6666]
[1748765233931,70.82153495,154.32,154.27,22.44794951]
[1748765235768,64.34134951,154.32,154.27,28.93001145]
[1748765235940,14.78134951,154.35,154.3,14.78134951]
[1748765236141,16.61836227,154.36,154.31,14.78134951]
[1748765236445,39.44,154.35,154.31,14.78134951]
[1748765236934,6.47920176,154.34,154.3,14.78134951]
[1748765238143,21.26026735,154.35,154.31,14.78134951]
[1748765238345,60.70026735,154.35,154.31,14.78134951]
[1748765240244,21.26026735,154.35,154.31,14.78134951]
[1748765240447,60.70026735,154.35,154.31,14.78134951]
[1748765242068,60.70026735,154.35,154.3,21.26203286]
[1748765242270,60.70026735,154.35,154.3,14.78134951]
[1748765245473,14.78134951,154.32,154.27,22.44794951]
[1748765245645,14.78134951,154.33,154.28,14.78134951]
[1748765246146,60.70026735,154.35,154.3,14.78134951]
[1748765248065,54.22134951,154.35,154.3,21.26211144]
[1748765248258,39.44,154.35,154.31,14.78134951]
[1748765249658,39.44,154.35,154.31,21.26173658]
[1748765250170,31.39995902,154.36,154.31,21.26173658]
[1748765250471,70.83995902,154.36,154.31,21.26173658]
[1748765250843,14.78134951,154.35,154.3,14.78134951]
[1748765251059,14.78134951,154.32,154.27,14.14866976]
[1748765251365,72.25451518,154.36,154.27,14.14866976]
[1748765251366,14.78134951,154.34,154.29,14.78134951]
[1748765251772,14.78134951,154.34,154.29,21.26254462]
[1748765252074,14.78134951,154.33,154.28,14.78134951]
[1748765253061,21.26137022,154.33,154.28,14.78134951]
[1748765254676,21.26137022,154.33,154.28,21.26295988]
[1748765254976,21.26061112,154.34,154.29,14.78134951]
[1748765255358,21.26061112,154.34,154.29,21.26263932]
[1748765256054,14.78134951,154.35,154.3,14.78134951]
[1748765257161,21.26028856,154.35,154.3,21.26200729]
[1748765259369,49.6,154.36,154.33,14.78134951]
[1748765259370,10.14,154.36,154.33,14.78134951]
[1748765260466,10.14,154.36,154.32,14.78134951]
[1748765261070,16.6183811,154.36,154.31,14.78134951]
[1748765261269,31.39973061,154.36,154.31,21.26174635]
[1748765261680,14.78134951,154.34,154.29,40.78134951]
[1748765261876,14.78134951,154.33,154.29,26.0]
[1748765262976,54.26134951,154.34,154.29,26.0]
[1748765263367,54.26134951,154.34,154.29,47.26252834]
[1748765263568,60.74060655,154.34,154.29,47.26252834]
[1748765264466,39.48,154.34,154.31,14.78134951]
[1748765264782,39.48,154.34,154.3,14.78134951]
[1748765264981,45.95924169,154.34,154.3,14.78134951]
[1748765265185,60.7405912,154.34,154.29,32.48117883]
[1748765265484,14.78134951,154.33,154.29,26.0]
[1748765266488,14.78134951,154.32,154.27,22.44794951]
[1748765267267,21.26160146,154.32,154.27,22.44794951]
[1748765269361,21.26160146,154.32,154.27,28.9300874]
[1748765269671,21.2614121,154.32,154.27,28.9300874]
[1748765272913,6.48006259,154.32,154.28,14.78134951]
[1748765274586,21.26111833,154.33,154.28,14.78134951]
[1748765276976,21.26111833,154.33,154.27,22.8619874]
[1748765277488,14.78134951,154.32,154.27,22.8619874]
[1748765279392,14.78134951,154.32,154.27,21.2634874]
[1748765279594,14.78134951,154.33,154.27,21.2634874]
[1748765279892,14.78134951,154.33,154.28,14.78134951]
[1748765280288,14.78134951,154.33,154.28,21.26294702]
[1748765280594,10.16,154.34,154.3,14.78134951]
[1748765281491,14.78134951,154.33,154.28,14.78134951]
[1748765282172,21.26144029,154.32,154.29,26.0]
[1748765283488,21.2609711,154.33,154.29,26.0]
[1748765283700,21.2609711,154.33,154.27,14.78134951]
[1748765285278,14.78134951,154.32,154.26,32.48245304]
[1748765285600,21.26169638,154.32,154.27,14.78134951]
[1748765285794,21.26169638,154.32,154.27,21.26334856]
[1748765286193,6.48034687,154.32,154.27,21.26334856]
[1748765286872,21.26169638,154.32,154.27,14.78134951]
[1748765288005,14.78134951,154.3,154.26,26.0]
[1748765288177,6.48034687,154.32,154.25,8.1581]
[1748765288178,14.78134951,154.29,154.25,8.1581]
[1748765288901,14.78134951,154.28,154.25,8.1581]
[1748765289100,14.78134951,154.28,154.23,40.78134951]
[1748765289677,21.2633637,154.28,154.23,40.78134951]
[1748765289896,21.2633637,154.28,154.23,47.26510322]
[1748765290804,21.2633637,154.28,154.23,40.78134951]
[1748765291301,21.2633637,154.28,154.23,47.26515177]
[1748765292797,21.2633637,154.28,154.23,40.78134951]
[1748765294803,21.2633637,154.28,154.24,14.78134951]
[1748765295101,6.48201419,154.28,154.24,14.78134951]
[1748765297706,21.2633637,154.28,154.24,14.78134951]
[1748765298306,21.2633637,154.28,154.23,40.78134951]
[1748765298923,14.78134951,154.27,154.22,1.5848]
[1748765299121,14.78134951,154.24,154.19,10.16]
[1748765299421,14.78134951,154.24,154.2,26.0]
[1748765299620,21.26498985,154.24,154.2,26.0]
[1748765300610,14.78134951,154.22,154.17,17.31983804]
[1748765300810,14.78134951,154.22,154.17,43.31983804]
[1748765301389,14.78134951,154.22,154.17,2.53848853]
[1748765301589,21.26630293,154.21,154.17,17.31983804]
[1748765305103,21.26630293,154.21,154.17,2.53848853]
[1748765305910,21.26630293,154.21,154.17,17.31983804]
[1748765306093,14.78134951,154.21,154.17,17.31983804]
[1748765306294,70.8651901,154.23,154.18,14.78134951]
[1748765306511,70.8651901,154.23,154.19,14.78134951]
[1748765306893,70.8651901,154.23,154.18,14.78134951]
[1748765307128,14.78134951,154.21,154.17,2.53848853]
[1748765307417,14.78134951,154.21,154.17,17.31983804]
[1748765307802,14.78134951,154.22,154.17,17.31983804]
[1748765308119,21.26601328,154.21,154.17,17.31983804]
[1748765311523,14.78134951,154.21,154.17,23.80602702]
[1748765311820,6.48440193,154.22,154.18,14.78134951]
[1748765311821,14.78134951,154.22,154.18,14.78134951]
[1748765312897,49.6,154.23,154.18,14.78134951]
[1748765313101,10.16,154.23,154.19,21.2668544]
[1748765315210,24.94134951,154.23,154.19,14.78134951]
[1748765315604,24.94134951,154.23,154.19,21.26682547]
[1748765316823,10.16,154.23,154.19,21.26682547]
[1748765324223,24.94134951,154.23,154.19,21.26682547]
[1748765331038,10.16,154.23,154.19,21.26682547]
[1748765331838,60.70482038,154.24,154.19,21.26682547]
[1748765332714,55.39326968,154.24,154.19,9.46979881]
[1748765332916,9.46979881,154.23,154.18,15.95572435]
[1748765333340,9.46979881,154.23,154.18,9.46979881]
[1748765333647,9.46979881,154.21,154.17,4.16228853]
[1748765334942,55.39488311,154.2,154.17,2.53848853]
[1748765336346,9.46979881,154.19,154.17,2.53848853]
[1748765336723,55.39488311,154.2,154.17,2.53848853]
[1748765337446,6.48592554,154.18,154.17,2.53848853]
[1748765340259,15.95572435,154.18,154.17,2.53848853]
[1748765340727,18.933972,154.17,154.09,1.5438]
[1748765341051,9.46979881,154.1,154.06,9.46979881]
[1748765341714,9.46979881,154.1,154.05,11.12309881]
[1748765342019,9.46979881,154.1,154.05,27.6533]
[1748765342226,15.95928522,154.1,154.05,37.12309881]
[1748765342629,21.31245321,154.1,154.05,42.4762668]
[1748765343131,21.31245321,154.1,154.0,16.23283558]
[1748765343336,14.8229668,154.05,154.0,8.14680649]
[1748765343553,14.8229668,154.05,154.0,48.96977329]
[1748765344526,39.52,154.06,154.0,48.96977329]
[1748765344723,6.49022899,154.08,154.02,14.8229668]
[1748765345041,54.3629668,154.08,154.03,14.8229668]
[1748765345839,14.8229668,154.08,154.04,14.8229668]
[1748765346027,14.8229668,154.08,154.04,21.31449186]
[1748765346632,72.14165009,154.09,154.04,21.31449186]
[1748765350648,14.8229668,154.08,154.04,21.31449186]
[1748765352653,14.8229668,154.08,154.04,14.8229668]
[1748765352834,14.8229668,154.08,154.03,21.31514777]
[1748765353155,14.8229668,154.06,154.01,40.8229668]
[1748765353326,14.8229668,154.07,154.02,14.8229668]
[1748765354451,14.8229668,154.07,154.02,21.31536369]
[1748765354650,14.8229668,154.08,154.03,22.7952668]
[1748765355741,21.31314421,154.08,154.03,22.7952668]
[1748765355939,14.8229668,154.07,154.03,7.9723]
[1748765357027,21.31364188,154.07,154.03,7.9723]
[1748765357241,14.8229668,154.06,154.03,7.9723]
[1748765357454,54.3429668,154.05,154.03,7.9723]
[1748765359157,14.8229668,154.04,154.03,7.9723]
[1748765359334,59.23812462,154.1,154.03,22.7952668]
[1748765359536,14.8229668,154.09,154.04,14.8229668]
[1748765359758,14.8229668,154.07,154.03,7.9723]
[1748765359963,14.8229668,154.08,154.03,22.7952668]
[1748765360136,14.8229668,154.08,154.03,22.89426906]
[1748765360331,50.90445386,154.1,154.05,14.8229668]
[1748765360558,44.41515782,154.1,154.07,14.8229668]
[1748765361263,10.14,154.12,154.09,14.8229668]
[1748765361449,10.14,154.12,154.1,14.8229668]
[1748765362261,24.9629668,154.12,154.06,6.49097754]
[1748765362444,24.9629668,154.12,154.07,14.8229668]
[1748765362445,31.45152489,154.12,154.07,14.8229668]
[1748765362645,31.45152489,154.12,154.06,6.49097754]
[1748765362846,31.45152489,154.12,154.07,14.8229668]
[1748765363267,24.9629668,154.12,154.08,14.8229668]
[1748765364559,10.14,154.12,154.08,14.8229668]
[1748765365065,16.6284819,154.12,154.08,14.8229668]
[1748765365266,10.14,154.12,154.08,14.8229668]
[1748765365769,24.9629668,154.12,154.08,14.8229668]
[1748765365964,10.14,154.12,154.08,14.8229668]
[1748765366144,24.9629668,154.12,154.08,14.8229668]
[1748765367653,24.9629668,154.12,154.07,21.31325725]
[1748765368763,31.45154704,154.12,154.08,14.8229668]
[1748765368939,31.45154704,154.12,154.07,21.31325725]
[1748765369145,10.14,154.12,154.08,14.8229668]
[1748765369366,10.14,154.12,154.08,21.3129664]
[1748765372072,119.72432314,154.16,154.08,21.3129664]
[1748765372073,39.66,154.15,154.11,14.8229668]
[1748765372370,10.26,154.16,154.14,14.8229668]
[1748765372669,21.30914942,154.18,154.14,14.8229668]
[1748765372869,60.98914942,154.18,154.14,14.8229668]
[1748765373072,60.98914942,154.18,154.13,14.8229668]
[1748765374058,46.16618262,154.18,154.13,14.8229668]
[1748765374261,60.98914942,154.18,154.13,14.8229668]
[1748765374462,60.96914942,154.18,154.13,14.8229668]
[1748765374666,60.96914942,154.18,154.14,14.8229668]
[1748765375051,14.8229668,154.17,154.13,14.8229668]
[1748765375245,14.8229668,154.17,154.12,14.8229668]
[1748765376459,21.30968208,154.17,154.12,14.8229668]
[1748765377269,14.8229668,154.16,154.12,14.8229668]
[1748765377470,60.96968208,154.17,154.12,21.31134074]
[1748765378051,14.8229668,154.15,154.11,32.6381]
[1748765378278,46.14671528,154.17,154.1,1.6594]
[1748765378279,14.8229668,154.13,154.1,1.6594]
[1748765378470,21.31141735,154.12,154.1,1.6594]
[1748765378867,6.48845055,154.12,154.1,1.6594]
[1748765379077,21.31141735,154.12,154.1,1.6594]
[1748765379580,21.31141735,154.12,154.08,26.0]
[1748765381257,14.8229668,154.11,154.07,6.6381]
[1748765381591,6.48845055,154.12,154.07,6.6381]
[1748765381755,14.8229668,154.11,154.07,21.4610668]
[1748765382158,14.8229668,154.11,154.07,14.8229668]
[1748765382565,21.3119157,154.11,154.07,14.8229668]
[1748765382870,21.3119157,154.11,154.06,48.97332527]
[1748765383264,21.3119157,154.11,154.06,42.4823668]
[1748765383783,21.3119157,154.11,154.07,14.8229668]
[1748765384559,14.8229668,154.11,154.07,14.8229668]
[1748765385374,21.31196196,154.11,154.07,14.8229668]
[1748765386664,14.8229668,154.11,154.07,14.8229668]
[1748765386864,54.4829668,154.13,154.08,14.8229668]
[1748765387096,10.26,154.15,154.08,14.8229668]
[1748765387263,10.26,154.15,154.13,14.8229668]